bitfinex/quotes_BTCUSD_20250421
["timestamp","ask_amount","ask_price","bid_price","bid_amount"]
[1745211237198,0.0452,87139.0,87119.0,0.09812]
[1745211240707,0.0382,87139.0,87119.0,0.09812]
[1745211241348,0.0498,87138.0,87119.0,0.09812]
[1745211241846,0.0498,87138.0,87120.0,0.00229517]
[1745211243346,0.0498,87138.0,87121.0,0.98228]
[1745211243543,0.0498,87138.0,87122.0,0.00229517]
[1745211243792,0.0452,87137.0,87122.0,0.00229517]
[1745211244856,0.0477,87136.0,87121.0,0.98228]
[1745211245061,0.047,87135.0,87121.0,0.98228]
[1745211245666,0.047,87135.0,87122.0,0.00229521]
[1745211245871,0.047,87135.0,87121.0,0.98228]
[1745211248125,0.047,87135.0,87122.0,0.09812]
[1745211248509,0.04,87135.0,87122.0,0.09812]
[1745211249310,0.04,87135.0,87123.0,0.00229521]
[1745211250692,0.04,87135.0,87122.0,0.09812]
[1745211252991,0.04,87135.0,87123.0,0.98228]
[1745211256130,0.04,87135.0,87124.0,0.0022952]
[1745211256462,0.01498,87135.0,87125.0,0.11944791]
[1745211256664,0.00879,87138.0,87127.0,0.01454085]
[1745211256857,0.00879,87138.0,87128.0,0.12174265]
[1745211257468,1e-08,87139.0,87128.0,0.12174265]
[1745211257881,1e-08,87139.0,87125.0,0.03325954]
[1745211257882,1e-08,87139.0,87129.0,1.08036]
[1745211258303,1e-08,87139.0,87130.0,0.00229479]
[1745211259999,0.04696001,87142.0,87130.0,0.00229479]
[1745211260429,0.04696001,87142.0,87130.0,0.00329479]
[1745211260622,0.01928001,87142.0,87130.0,0.00329479]
[1745211260986,0.01928001,87142.0,87130.0,0.01193574]
[1745211261199,0.01928001,87142.0,87130.0,0.00964095]
[1745211261561,0.01928001,87142.0,87131.0,0.09808]
[1745211262406,0.01928001,87142.0,87130.0,0.00964095]
[1745211262632,0.01928001,87142.0,87131.0,0.09808]
[1745211264091,0.30820532,87141.0,87130.0,0.001]
[1745211264290,0.37517258,87141.0,87132.0,0.09808]
[1745211264486,0.0473,87139.0,87132.0,0.09808]
[1745211264686,0.0473,87137.0,87132.0,0.09808]
[1745211264864,0.11944791,87136.0,87132.0,0.09808]
[1745211265083,0.11944791,87136.0,87102.0,0.01454085]
[1745211265244,0.11944791,87136.0,87103.0,1.19972791]
[1745211265450,0.11944791,87136.0,87103.0,1.20846244]
[1745211266138,0.0496,87135.0,87104.0,1.21430876]
[1745211266372,0.0969,87133.0,87104.0,1.21430876]
[1745211266569,0.0496,87131.0,87104.0,1.21430876]
[1745211266816,0.0496,87130.0,87104.0,1.21430876]
[1745211271114,0.0506,87130.0,87104.0,1.21430876]
[1745211271330,0.0496,87128.0,87104.0,1.21430876]
[1745211271975,0.0496,87128.0,87104.0,1.08032]
[1745211272132,0.11944791,87127.0,87104.0,1.08032]
[1745211272336,0.0473,87125.0,87104.0,1.08032]
[1745211273311,0.0473,87123.0,87105.0,0.09808]
[1745211273585,0.0473,87121.0,87105.0,0.09808]
[1745211273812,0.0473,87119.0,87105.0,0.09808]
[1745211274048,0.0473,87117.0,87104.0,8.823e-05]
[1745211274184,0.09185741,87110.0,87104.0,0.98236823]
[1745211274390,0.11944791,87108.0,87097.0,0.02165944]
[1745211274630,0.0473,87100.0,87094.0,0.0004223]
[1745211274799,0.0473,87097.0,87094.0,0.0004223]
[1745211275020,0.09185741,87101.0,87069.0,0.0004226]
[1745211275021,0.0473,87095.0,87092.0,0.02143976]
[1745211275200,0.0473,87092.0,87090.0,0.000267]
[1745211275409,0.12174265,87091.0,87090.0,0.000267]
[1745211275604,0.12174265,87091.0,87090.0,0.09808]
[1745211277740,0.53794265,87091.0,87042.0,0.01454085]
[1745211277946,0.53564791,87091.0,87086.0,0.00013577]
[1745211278153,0.0471,87089.0,87086.0,0.00013577]
[1745211278354,0.12174265,87088.0,87086.0,0.00013577]
[1745211279957,0.0471,87087.0,87086.0,0.02229953]
[1745211280165,0.16654791,87087.0,87086.0,0.02229953]
[1745211284722,0.16289818,87087.0,87086.0,0.02229953]
[1745211285319,0.16289818,87087.0,87086.0,0.12041953]
[1745211287577,0.15589818,87087.0,87086.0,0.12041953]
[1745211295369,0.14889818,87087.0,87086.0,0.12041953]
[1745211303099,0.14189818,87087.0,87086.0,0.12041953]
[1745211310787,0.13489818,87087.0,87086.0,0.12041953]
[1745211316205,0.59939818,87087.0,87086.0,0.00013577]
[1745211316403,0.61393903,87087.0,87086.0,0.00013577]
[1745211317367,0.62251092,87087.0,87086.0,0.00013577]
[1745211317565,0.01454085,87084.0,87082.0,0.09808]
[1745211317722,0.22748876,87083.0,87082.0,0.09808]
[1745211318586,0.22048876,87083.0,87082.0,0.09808]
[1745211320073,0.01454085,87080.0,87072.0,0.09804]
[1745211320220,0.16751346,87073.0,87072.0,0.09804]
[1745211320427,0.58371346,87073.0,87072.0,0.09804]
[1745211321606,0.62931346,87073.0,87072.0,0.09804]
[1745211326199,0.62231346,87073.0,87072.0,0.09804]
[1745211328609,0.62231346,87073.0,87072.0,0.10162118]
[1745211331242,0.62331346,87073.0,87072.0,0.10162118]
[1745211331373,0.62331346,87073.0,87072.0,0.09804]
[1745211333980,0.61631346,87073.0,87072.0,0.09804]
[1745211334231,0.63085431,87073.0,87072.0,0.09804]
[1745211334477,0.01454085,87070.0,87062.0,0.09808]
[1745211334702,0.0955,87062.0,87055.0,0.02747437]
[1745211334882,0.11944791,87057.0,87056.0,0.09808]
[1745211335083,0.11944791,87057.0,87045.0,7.805e-05]
[1745211335084,0.0485,87055.0,87053.0,0.02741485]
[1745211335221,0.53554659,87054.0,87045.0,7.805e-05]
[1745211335426,0.53554659,87054.0,87046.0,0.09808]
[1745211335427,0.0485,87047.0,87046.0,0.09808]
[1745211335673,0.16794791,87047.0,87046.0,0.09808]
[1745211337179,0.11944791,87047.0,87046.0,0.09808]
[1745211337359,0.11944791,87047.0,87046.0,0.09908]
[1745211341827,0.11244791,87047.0,87046.0,0.09908]
[1745211342743,0.10385277,87047.0,87046.0,0.09908]
[1745211349552,0.41609868,87054.0,87046.0,0.09908]
[1745211349757,0.11944791,87053.0,87046.0,0.09908]
[1745211349867,0.11944791,87053.0,87047.0,0.09804]
[1745211351015,0.11944791,87053.0,87048.0,0.09804]
[1745211352678,0.0913,87052.0,87048.0,0.09804]
[1745211352871,0.11944791,87051.0,87048.0,0.09804]
[1745211356524,0.46149868,87068.0,87049.0,0.10033746]
[1745211356699,0.11944791,87067.0,87049.0,0.10033746]
[1745211357287,0.11244791,87067.0,87049.0,0.10033746]
[1745211357506,0.0913,87076.0,87049.0,0.10033746]
[1745211357682,0.41609868,87080.0,87050.0,0.11944791]
[1745211357903,0.41609868,87080.0,87051.0,0.0071]
[1745211358629,0.11944791,87072.0,87051.0,0.0071]
[1745211358773,0.11944791,87072.0,87052.0,0.09804]
[1745211359418,0.41609868,87080.0,87053.0,0.00229691]
[1745211359822,0.41609868,87080.0,87054.0,0.11944791]
[1745211360136,0.09185741,87090.0,87056.0,0.01454085]
[1745211360309,0.09185741,87090.0,87058.0,0.01454085]
[1745211360518,0.09185741,87090.0,87060.0,0.01454085]
[1745211360726,0.09185741,87090.0,87061.0,0.11944791]
[1745211361659,0.09185741,87090.0,87062.0,0.00229643]
[1745211361865,0.09185741,87090.0,87062.0,0.12174434]
[1745211364692,0.09185741,87090.0,87062.0,0.11944791]
[1745211364891,0.08585741,87090.0,87062.0,0.12044791]
[1745211365110,0.11944791,87089.0,87062.0,0.12044791]
[1745211365456,0.11944791,87089.0,87063.0,0.00229645]
[1745211367480,0.11944791,87089.0,87064.0,0.098]
[1745211369730,0.11944791,87089.0,87065.0,0.00229645]
[1745211372617,0.11244791,87089.0,87065.0,0.00229645]
[1745211374539,0.11244791,87089.0,87064.0,0.098]
[1745211375056,0.11244791,87089.0,87065.0,0.00229646]
[1745211375248,0.11244791,87089.0,87064.0,0.098]
[1745211377441,0.11244791,87089.0,87065.0,0.00229646]
[1745211377949,0.11244791,87089.0,87066.0,0.98288]
[1745211378084,0.11244791,87089.0,87067.0,0.00229647]
[1745211379676,0.41609868,87098.0,87071.0,0.01454085]
[1745211379847,0.41609868,87098.0,87074.0,0.0459]
[1745211380087,0.41609868,87098.0,87075.0,0.12174408]
[1745211380469,0.40909868,87098.0,87075.0,0.12174408]
[1745211381080,0.40923435,87098.0,87075.0,0.12174408]
[1745211382800,0.40923435,87098.0,87075.0,0.13028262]
[1745211384023,0.40923435,87098.0,87075.0,0.12798645]
[1745211384426,0.00013567,87098.0,87075.0,0.12798645]
[1745211385420,0.00013567,87098.0,87076.0,0.0022961]
[1745211385621,0.00013567,87098.0,87076.0,0.12174401]
[1745211387227,0.00013567,87098.0,87076.0,0.11944791]
[1745211388031,0.04558147,87107.0,87076.0,0.11944791]
[1745211388205,0.11944791,87106.0,87076.0,0.00013567]
[1745211388770,0.09185741,87101.0,87076.0,0.00013567]
[1745211389243,0.11944791,87100.0,87077.0,0.09792]
[1745211389647,0.11944791,87100.0,87076.0,0.00013567]
[1745211389849,0.09185741,87101.0,87078.0,0.09792]
[1745211390072,0.21130532,87101.0,87078.0,0.09792]
[1745211390727,0.0474462,87108.0,87079.0,0.00229618]
[1745211390929,0.11944791,87107.0,87080.0,0.0479]
[1745211391137,0.0476,87106.0,87081.0,0.0022961]
[1745211391353,0.11944791,87105.0,87081.0,0.0022961]
[1745211392159,0.11944791,87105.0,87080.0,0.0479]
[1745211395907,0.11244791,87105.0,87080.0,0.0479]
[1745211399703,0.0483,87099.0,87079.0,0.001]
[1745211399879,0.09185741,87092.0,87080.0,0.09792]
[1745211400098,0.11944791,87091.0,87080.0,0.09792]
[1745211401837,0.0483,87090.0,87080.0,0.09792]
[1745211402039,0.16574791,87089.0,87080.0,0.09792]
[1745211403229,0.0463,87089.0,87080.0,0.09792]
[1745211403645,0.40209868,87091.0,87081.0,0.00229655]
[1745211404859,0.40209868,87091.0,87080.0,0.09792]
[1745211405064,0.37618868,87091.0,87080.0,0.09792]
[1745211405262,0.37618868,87091.0,87081.0,0.98276]
[1745211406534,0.37169968,87091.0,87081.0,0.98276]
[1745211407678,0.0483,87105.0,87082.0,0.00229628]
[1745211407821,0.0463,87106.0,87082.0,0.00229628]
[1745211410094,0.0463,87106.0,87083.0,0.09788]
[1745211410300,0.0463,87106.0,87084.0,0.00229601]
[1745211411475,0.0463,87106.0,87076.0,0.00013567]
[1745211411476,0.0463,87106.0,87085.0,1.0806]
[1745211411697,0.0464358,87106.0,87086.0,0.10017601]
[1745211412518,0.0394358,87106.0,87086.0,0.10017601]
[1745211416369,1e-08,87108.0,87087.0,0.11944791]
[1745211416591,0.02934626,87112.0,87088.0,0.02149582]
[1745211416813,0.02934626,87112.0,87088.0,0.14094373]
[1745211417632,0.00853627,87112.0,87088.0,0.14094373]
[1745211418616,0.09185741,87119.0,87089.0,0.11944791]
[1745211418857,0.11944791,87118.0,87090.0,0.00229574]
[1745211419035,0.11944791,87118.0,87090.0,0.12174365]
[1745211419235,0.11944791,87118.0,87108.0,0.24978955]
[1745211419419,0.11944791,87118.0,87109.0,0.09788]
[1745211419619,0.11944791,87118.0,87109.0,0.13121015]
[1745211420022,0.11244791,87118.0,87109.0,0.13121015]
[1745211420780,0.08419742,87119.0,87109.0,0.13350591]
[1745211421045,0.36512968,87128.0,87110.0,0.0022956]
[1745211421260,0.11944791,87127.0,87118.0,0.24978955]
[1745211421839,0.045,87126.0,87109.0,0.13121015]
[1745211421978,0.16444791,87126.0,87117.0,0.24978955]
[1745211422882,0.16444791,87126.0,87110.0,0.24978955]
[1745211424732,0.16444791,87126.0,87111.0,0.98256]
[1745211427589,0.16444791,87126.0,87112.0,0.00229554]
[1745211427747,0.15744791,87126.0,87112.0,0.00229554]
[1745211427948,0.15744791,87126.0,87111.0,0.98256]
[1745211428838,0.15744791,87126.0,87112.0,0.98248]
[1745211430821,0.15744791,87126.0,87113.0,0.00229554]
[1745211431387,0.001,87140.0,87116.0,0.24978955]
[1745211431588,0.00045272,87133.0,87130.0,0.24978955]
[1745211431831,0.00045272,87133.0,87131.0,0.09784]
[1745211435654,0.04205272,87134.0,87131.0,0.09784]
[1745211436032,0.04218846,87134.0,87131.0,0.09784]
[1745211441785,0.232053,87126.0,87123.0,0.24978955]
[1745211441925,0.232053,87126.0,87124.0,0.0978]
[1745211442412,0.202853,87126.0,87124.0,0.0978]
[1745211442590,0.114373,87126.0,87124.0,0.0978]
[1745211442817,0.05712827,87126.0,87124.0,0.0978]
[1745211443201,0.00013574,87134.0,87124.0,0.24978955]
[1745211443404,0.03958014,87142.0,87130.0,0.24978955]
[1745211445286,0.03958014,87142.0,87131.0,0.0978]
[1745211446456,0.16804791,87141.0,87132.0,0.0978]
[1745211446657,0.0496,87128.0,87124.0,0.00045272]
[1745211446905,0.0456,87126.0,87125.0,0.0978]
[1745211447108,0.16504791,87126.0,87124.0,0.00045272]
[1745211447284,0.0456,87126.0,87125.0,0.0978]
[1745211452816,0.0386,87132.0,87125.0,0.0978]
[1745211453312,0.15804791,87132.0,87125.0,0.0978]
[1745211455056,0.15804791,87132.0,87124.0,0.00045272]
[1745211455256,0.15804791,87132.0,87126.0,1.08016]
[1745211455468,0.15850027,87132.0,87127.0,0.0978]
[1745211458698,0.15150027,87132.0,87127.0,0.0978]
[1745211459418,0.00229609,87131.0,87127.0,0.0978]
[1745211459577,0.15150027,87132.0,87127.0,0.0978]
[1745211462939,0.15150027,87132.0,87128.0,1.08016]
[1745211462940,0.05,87131.0,87128.0,1.08016]
[1745211463149,0.05,87131.0,87129.0,1.08016]
[1745211463618,0.051,87131.0,87129.0,1.08016]
[1745211464260,0.001,87131.0,87129.0,1.08016]
[1745211464623,0.00045236,87132.0,87129.0,1.08116]
[1745211465474,0.0453,87138.0,87130.0,0.00229515]
[1745211466241,0.0453,87144.0,87129.0,1.08216]
[1745211466442,0.0383,87144.0,87129.0,1.08216]
[1745211474356,0.0313,87144.0,87129.0,1.08216]
[1745211482027,0.0243,87144.0,87129.0,1.08216]
[1745211486106,0.001,87142.0,87129.0,1.08216]
[1745211486310,0.121744,87141.0,87129.0,1.08216]
[1745211487067,0.0499,87134.0,87130.0,0.09776]
[1745211487282,0.171644,87134.0,87130.0,0.09776]
[1745211487653,0.16934791,87134.0,87130.0,0.09776]
[1745211488996,0.171644,87134.0,87130.0,0.09776]
[1745211489609,0.164644,87134.0,87130.0,0.09776]
[1745211490116,0.16234791,87134.0,87130.0,0.09776]
[1745211491816,0.0429,87134.0,87130.0,0.09776]
[1745211491979,0.05,87135.0,87130.0,0.09776]
[1745211493461,0.05,87136.0,87130.0,0.09776]
[1745211494600,0.05,87136.0,87130.0,0.09876]
[1745211495988,0.05,87137.0,87130.0,0.09876]
[1745211496347,0.05,87136.0,87130.0,0.09876]
[1745211497105,0.05,87136.0,87130.0,0.001]
[1745211497312,0.043,87136.0,87131.0,0.09776]
[1745211498562,0.0499,87138.0,87131.0,0.09776]
[1745211499261,0.043,87136.0,87131.0,0.09776]
[1745211502358,0.31752968,87141.0,87131.0,0.09776]
[1745211503735,0.35821903,87141.0,87131.0,0.09776]
[1745211504648,0.043,87141.0,87131.0,0.09776]
[1745211505074,0.036,87141.0,87131.0,0.09776]
[1745211507267,0.0479,87140.0,87131.0,0.09776]
[1745211509329,0.121744,87139.0,87131.0,0.09776]
[1745211509537,0.036,87137.0,87131.0,0.09776]
[1745211510099,0.001,87135.0,87131.0,0.09776]
[1745211510308,0.11944791,87134.0,87131.0,0.09776]
[1745211511967,0.11944791,87134.0,87131.0,0.09876]
[1745211512816,0.11244791,87134.0,87131.0,0.09996]
[1745211520410,0.10544791,87134.0,87131.0,0.09996]
[1745211522106,0.0957,87136.0,87131.0,0.09996]
[1745211528172,0.0887,87136.0,87131.0,0.09996]
[1745211528578,0.0887,87136.0,87135.0,0.0012]
[1745211529088,0.036,87137.0,87135.0,0.0012]
[1745211535954,0.029,87137.0,87135.0,0.0012]
[1745211537679,0.029,87137.0,87136.0,0.98228]
[1745211538690,0.0483,87140.0,87136.0,0.98228]
[1745211538985,0.029,87137.0,87136.0,0.98228]
[1745211539956,0.029,87137.0,87136.0,1.02428]
[1745211540149,0.0008448,87163.0,87136.0,1.123]
[1745211540368,0.11944791,87161.0,87136.0,1.123]
[1745211540576,0.11957772,87161.0,87136.0,1.123]
[1745211540780,0.0498,87159.0,87136.0,1.081]
[1745211542196,0.0498,87159.0,87136.0,1.082]
[1745211543616,0.0428,87159.0,87137.0,0.34]
[1745211550841,0.11944791,87158.0,87137.0,0.34]
[1745211551250,0.0428,87159.0,87138.0,0.00229497]
[1745211551427,0.0358,87159.0,87137.0,0.34]
[1745211552752,0.00012981,87161.0,87139.0,0.01454085]
[1745211552926,0.0008448,87163.0,87141.0,0.01454085]
[1745211553129,0.0008448,87163.0,87143.0,0.01454085]
[1745211553326,0.00093238,87162.0,87144.0,0.11944791]
[1745211555145,0.0008442,87169.0,87144.0,0.11944791]
[1745211555355,0.00082964,87169.0,87148.0,0.01454085]
[1745211555559,0.00050186,87173.0,87152.0,0.01454085]
[1745211555903,0.00050186,87173.0,87154.0,0.01454085]
[1745211556100,0.00050186,87173.0,87156.0,0.01454085]
[1745211556308,0.00050186,87173.0,87158.0,0.01454085]
[1745211556447,0.00050186,87173.0,87159.0,0.11944791]
[1745211557651,0.00050186,87173.0,87159.0,0.12802779]
[1745211563949,0.0499,87195.0,87159.0,0.12802779]
[1745211569317,0.16524791,87176.0,87160.0,0.09764]
[1745211569492,0.001,87170.0,87161.0,1.0794]
[1745211569632,0.16514791,87169.0,87162.0,1.0794]
[1745211569829,0.16514791,87169.0,87163.0,1.0794]
[1745211570266,0.16514791,87169.0,87163.0,1.11039819]
[1745211570874,0.16814791,87169.0,87163.0,1.11039819]
[1745211571091,0.001,87165.0,87163.0,1.11039819]
[1745211571246,0.16614791,87164.0,87163.0,1.11039819]
[1745211571906,0.16514791,87164.0,87163.0,1.11039819]
[1745211572132,0.16614791,87164.0,87163.0,1.11039819]
[1745211572434,0.0457,87164.0,87163.0,1.11039819]
[1745211573709,0.16514791,87164.0,87163.0,1.11039819]
[1745211576812,0.15814791,87164.0,87163.0,1.11039819]
[1745211578045,0.15914791,87164.0,87163.0,1.11039819]
[1745211581493,0.15914791,87164.0,87163.0,1.07956]
[1745211582291,0.15914791,87164.0,87163.0,1.1114181]
[1745211583917,0.15914791,87164.0,87163.0,1.4514181]
[1745211584450,0.20914791,87164.0,87163.0,1.3537781]
[1745211584651,0.20214791,87164.0,87163.0,1.4514181]
[1745211590783,0.24934791,87164.0,87163.0,1.4514181]
[1745211592644,0.66554791,87164.0,87163.0,1.3537781]
[1745211592843,0.66554791,87164.0,87163.0,1.4514181]
[1745211593039,0.65854791,87164.0,87163.0,1.4514181]
[1745211594120,0.65854791,87164.0,87163.0,1.1114181]
[1745211600188,0.65829791,87164.0,87163.0,1.1114181]
[1745211600783,0.23509791,87164.0,87163.0,1.1114181]
[1745211601124,0.23609791,87164.0,87163.0,1.1114181]
[1745211601335,0.23809791,87164.0,87163.0,1.1114181]
[1745211602717,0.003,87164.0,87163.0,1.1114181]
[1745211602867,0.051,87186.0,87163.0,1.1124181]
[1745211603110,0.048,87197.0,87184.0,0.09185741]
[1745211603334,0.0460223,87208.0,87185.0,0.09764]
[1745211603335,0.048,87186.0,87185.0,0.09764]
[1745211603547,0.049,87186.0,87185.0,0.09764]
[1745211603749,0.0974,87186.0,87185.0,0.09764]
[1745211604211,0.048,87186.0,87185.0,0.09764]
[1745211604422,4.522e-05,87189.0,87185.0,0.09764]
[1745211604647,4.522e-05,87189.0,87186.0,0.00229374]
[1745211604981,0.03073417,87196.0,87185.0,0.10640471]
[1745211605204,0.0004223,87208.0,87187.0,0.01454085]
[1745211605414,4.52e-05,87199.0,87189.0,0.01454085]
[1745211605626,4.52e-05,87199.0,87185.0,0.00876471]
[1745211605830,0.03173417,87196.0,87190.0,0.09764]
[1745211606034,0.15118208,87196.0,87191.0,0.09764]
[1745211606247,0.15118208,87196.0,87163.0,1.02544846]
[1745211606248,0.001,87193.0,87192.0,0.09764]
[1745211606460,0.03073417,87196.0,87192.0,0.09764]
[1745211606639,4.52e-05,87199.0,87192.0,0.09764]
[1745211606868,0.03073417,87198.0,87192.0,0.09764]
[1745211607110,0.03073417,87196.0,87192.0,0.09764]
[1745211607280,0.03073417,87197.0,87192.0,0.09764]
[1745211607658,0.001,87210.0,87193.0,0.00229363]
[1745211608012,0.0290996,87209.0,87192.0,0.09764]
[1745211608580,0.0220996,87209.0,87192.0,0.09764]
[1745211608951,0.0220996,87208.0,87192.0,0.09764]
[1745211609359,0.02196492,87208.0,87193.0,0.09764]
[1745211609824,0.02196492,87200.0,87186.0,0.3400452]
[1745211609970,0.02196492,87200.0,87194.0,0.09764]
[1745211610173,0.12044791,87199.0,87194.0,0.09764]
[1745211612523,0.02196492,87196.0,87194.0,0.09764]
[1745211612721,0.14241283,87195.0,87194.0,0.09764]
[1745211612924,0.02196492,87187.0,87186.0,4.52e-05]
[1745211613141,0.14241283,87187.0,87186.0,0.0976452]
[1745211614338,0.14221012,87187.0,87186.0,0.0976452]
[1745211614595,0.14200741,87187.0,87186.0,0.0976452]
[1745211615590,0.14166865,87187.0,87186.0,0.0976452]
[1745211615774,0.14142513,87187.0,87186.0,0.0976452]
[1745211616392,0.12044791,87187.0,87186.0,0.0976452]
[1745211616559,0.13442513,87187.0,87186.0,0.0976452]
[1745211617536,0.13422242,87187.0,87186.0,0.0976452]
[1745211619777,0.1339857,87187.0,87186.0,0.0976452]
[1745211619978,0.13262652,87187.0,87186.0,0.0976452]
[1745211620385,0.13194756,87187.0,87186.0,0.0976452]
[1745211623509,0.1314727,87187.0,87186.0,0.0976452]
[1745211623881,0.1244727,87187.0,87186.0,0.0976452]
[1745211624181,0.12441284,87187.0,87186.0,0.0976452]
[1745211624586,0.01397722,87187.0,87186.0,0.0976452]
[1745211627495,0.00093334,87189.0,87186.0,0.0976452]
[1745211627702,0.01397722,87187.0,87186.0,0.0976452]
[1745211629047,0.00093334,87189.0,87186.0,0.0976452]
[1745211629266,0.01397722,87187.0,87186.0,0.0976452]
[1745211629461,0.01363843,87187.0,87186.0,0.0976452]
[1745211630699,0.01357177,87187.0,87186.0,0.0976452]
[1745211630898,0.01352552,87187.0,87186.0,0.0988006]
[1745211631071,0.01352552,87187.0,87186.0,0.0976452]
[1745211631276,0.01352552,87187.0,87186.0,0.0988006]
[1745211631738,0.00652552,87187.0,87186.0,0.0988006]
[1745211632816,0.00642484,87187.0,87186.0,0.0988006]
[1745211633026,0.00093334,87189.0,87186.0,0.0998006]
[1745211633189,0.00642484,87188.0,87186.0,0.0998006]
[1745211633564,0.00642484,87187.0,87186.0,0.0998006]
[1745211634166,0.00642484,87195.0,87186.0,0.0998006]
[1745211634367,0.00093334,87201.0,87187.0,0.00229376]
[1745211634592,0.0469,87213.0,87186.0,0.1211006]
[1745211634593,0.00642484,87205.0,87186.0,0.1211006]
[1745211634796,0.00642484,87204.0,87187.0,0.34229344]
[1745211634967,0.00637522,87204.0,87187.0,0.34]
[1745211635192,0.00637522,87204.0,87188.0,0.00229344]
[1745211635564,0.00637522,87204.0,87187.0,0.34]
[1745211635782,0.00637522,87199.0,87187.0,0.34]
[1745211636655,0.00637522,87200.0,87187.0,0.34]
[1745211636806,0.00637522,87208.0,87188.0,0.00229344]
[1745211637005,0.00637522,87204.0,87187.0,0.34]
[1745211637223,0.00637522,87202.0,87187.0,0.34]
[1745211637419,0.00637522,87199.0,87187.0,0.34]
[1745211637796,0.00637522,87199.0,87186.0,0.01074752]
[1745211637998,0.00637522,87199.0,87187.0,0.0998936]
[1745211638424,0.00093334,87203.0,87187.0,0.0998936]
[1745211638664,0.00637522,87199.0,87187.0,0.0998936]
[1745211639362,0.00030856,87203.0,87187.0,0.0998936]
[1745211641275,0.00030856,87203.0,87188.0,0.9816]
[1745211641456,0.00030856,87203.0,87189.0,0.0022936]
[1745211641999,0.00030856,87210.0,87189.0,0.0022936]
[1745211642157,0.0469,87213.0,87189.0,0.0022936]
[1745211642158,0.00030856,87208.0,87189.0,0.0022936]
[1745211642359,0.11975647,87208.0,87189.0,0.0022936]
[1745211642784,0.11975647,87208.0,87188.0,0.9816]
[1745211643564,0.11975647,87208.0,87189.0,0.00229348]
[1745211643913,0.11975647,87208.0,87188.0,0.9816]
[1745211646488,0.00030856,87201.0,87188.0,0.9816]
[1745211646692,0.16464791,87207.0,87188.0,0.9816]
[1745211646693,0.0929,87196.0,87188.0,0.9816]
[1745211646871,0.0929,87196.0,87189.0,0.09756]
[1745211647180,0.0859,87196.0,87189.0,0.09756]
[1745211652018,0.00030856,87191.0,87189.0,0.09756]
[1745211652216,0.00030856,87189.0,87188.0,0.9816]
[1745211652437,0.04830856,87189.0,87188.0,1.07916]
[1745211653197,0.16775647,87189.0,87188.0,1.07916]
[1745211653662,0.21633891,87189.0,87188.0,1.07916]
[1745211653796,0.2163092,87189.0,87188.0,1.07916]
[1745211654777,0.2173092,87189.0,87188.0,0.9816]
[1745211654978,0.2103092,87189.0,87188.0,1.07916]
[1745211662615,0.2033092,87189.0,87188.0,1.07916]
[1745211665614,0.6195092,87189.0,87188.0,1.07916]
[1745211666533,0.6195092,87189.0,87188.0,1.11775518]
[1745211670261,0.6125092,87189.0,87188.0,1.11775518]
[1745211670721,0.62705005,87189.0,87188.0,1.11775518]
[1745211675446,0.6125092,87189.0,87188.0,1.11775518]
[1745211676054,0.58534791,87189.0,87188.0,1.11891058]
[1745211676280,0.001,87189.0,87188.0,1.11991058]
[1745211678113,0.4102,87198.0,87188.0,1.11991058]
[1745211678321,0.11944791,87197.0,87188.0,1.11991058]
[1745211680966,0.12160331,87197.0,87189.0,1.0794]
[1745211685921,0.11460331,87197.0,87189.0,1.0794]
[1745211686607,0.0021554,87197.0,87189.0,1.0794]
[1745211690774,0.4102,87198.0,87189.0,1.0794]
[1745211690977,0.52964791,87198.0,87189.0,1.0794]
[1745211691290,0.53180331,87198.0,87189.0,1.0794]
[1745211693587,0.52480331,87198.0,87189.0,1.0794]
[1745211701316,0.51780331,87198.0,87189.0,1.0794]
[1745211702091,0.11944791,87197.0,87189.0,1.0794]
[1745211702293,0.0482,87196.0,87189.0,1.0794]
[1745211702498,0.11944791,87195.0,87189.0,1.0794]
[1745211702642,0.0466,87194.0,87189.0,1.0794]
[1745211702838,0.0482,87192.0,87189.0,1.0794]
[1745211703043,0.0482,87190.0,87189.0,1.0794]
[1745211703247,0.21424791,87190.0,87189.0,1.0794]
[1745211703449,0.61044791,87190.0,87189.0,1.0794]
[1745211704953,0.61044791,87190.0,87189.0,1.07936]
[1745211705354,0.61044791,87190.0,87189.0,1.41936]
[1745211705894,0.61028287,87190.0,87189.0,1.41936]
[1745211708952,0.60328287,87190.0,87189.0,1.41936]
[1745211714484,0.60328287,87190.0,87189.0,1.07936]
[1745211715099,0.81181589,87190.0,87189.0,0.09756]
[1745211715337,0.56224791,87190.0,87189.0,0.09756]
[1745211715504,0.60834791,87190.0,87189.0,0.09756]
[1745211716670,0.60134791,87190.0,87189.0,0.13070759]
[1745211717595,0.60134791,87190.0,87189.0,0.12766759]
[1745211721289,0.60350331,87190.0,87189.0,0.12766759]
[1745211724398,0.59650331,87190.0,87189.0,0.12766759]
[1745211732067,0.58950331,87190.0,87189.0,0.12766759]
[1745211732937,0.58950331,87190.0,87189.0,0.12736759]
[1745211739794,0.58250331,87190.0,87189.0,0.12736759]
[1745211740765,0.58250331,87190.0,87189.0,0.46736759]
[1745211747491,0.57550331,87190.0,87189.0,0.46736759]
[1745211749066,0.3983554,87190.0,87189.0,0.46736759]
[1745211749386,0.0021554,87190.0,87189.0,0.46736759]
[1745211750460,0.0021554,87190.0,87189.0,1.44920759]
[1745211750878,0.3962,87197.0,87189.0,1.10920759]
[1745211751077,0.11944791,87196.0,87189.0,1.10920759]
[1745211753562,0.12160331,87196.0,87189.0,1.10920759]
[1745211754206,0.12160331,87196.0,87190.0,0.34]
[1745211755537,0.11460331,87196.0,87190.0,0.34]
[1745211762962,0.10760331,87196.0,87190.0,0.34]
[1745211764821,0.0021554,87196.0,87190.0,0.34]
[1745211765245,0.0021554,87196.0,87189.0,1.10920759]
[1745211770870,0.0021554,87196.0,87191.0,0.34]
[1745211771202,0.3913554,87197.0,87191.0,0.34]
[1745211777604,0.35618899,87197.0,87192.0,0.00229367]
[1745211777970,0.34264899,87197.0,87191.0,0.341]
[1745211778376,0.32946899,87197.0,87191.0,0.341]
[1745211778764,0.32246899,87197.0,87191.0,0.341]
[1745211778981,0.32246899,87214.0,87191.0,0.341]
[1745211779182,0.4419169,87214.0,87192.0,0.00229339]
[1745211779382,0.32246899,87214.0,87192.0,0.00229339]
[1745211780589,0.15376925,87214.0,87193.0,0.11944791]
[1745211780802,0.15376925,87214.0,87194.0,0.00229309]
[1745211781007,0.09656036,87214.0,87196.0,0.34]